bitfinex-derivatives/quotes_BTCF0:USTF0_20241120
["timestamp","ask_amount","ask_price","bid_price","bid_amount"]
[1732084152551,0.45314523,92598.0,92597.0,0.74843464]
[1732084152754,0.45314523,92598.0,92597.0,0.42724096]
[1732084154366,0.3608,92598.0,92597.0,0.42724096]
[1732084155074,0.09416,92603.0,92601.0,0.053938]
[1732084155258,0.09416,92603.0,92602.0,0.43351135]
[1732084155770,0.09416,92603.0,92602.0,0.84504477]
[1732084155956,0.41533701,92604.0,92602.0,0.84504477]
[1732084155957,0.41533701,92604.0,92602.0,0.52390178]
[1732084156155,0.414737,92604.0,92603.0,0.33801668]
[1732084156969,0.414737,92604.0,92603.0,0.01686836]
[1732084157559,0.414737,92604.0,92603.0,0.01686712]
[1732084159264,0.414737,92604.0,92602.0,0.0955]
[1732084159575,0.053937,92603.0,92602.0,0.41664832]
[1732084159961,0.053937,92603.0,92602.0,0.82842228]
[1732084160474,0.053937,92603.0,92602.0,0.50727396]
[1732084162478,0.053937,92603.0,92602.0,0.52414132]
[1732084163360,0.3608,92604.0,92602.0,0.52428199]
[1732084163677,0.3608,92604.0,92603.0,0.01686736]
[1732084163873,0.36136001,92619.0,92602.0,0.0955]
[1732084164073,0.09416,92616.0,92609.0,0.053933]
[1732084164378,0.09416,92616.0,92610.0,0.01686709]
[1732084164576,0.09416,92616.0,92611.0,0.01686709]
[1732084164877,0.09416,92616.0,92612.0,0.01686709]
[1732084165066,0.05393,92614.0,92613.0,0.01686709]
[1732084165472,0.12364804,92614.0,92613.0,0.01686533]
[1732084165667,0.053937,92604.0,92602.0,0.0955]
[1732084165975,0.053937,92604.0,92603.0,0.04385002]
[1732084166165,0.053932,92612.0,92603.0,0.16750406]
[1732084166366,0.053932,92612.0,92604.0,0.09778602]
[1732084166675,0.053932,92612.0,92605.0,0.07080139]
[1732084166878,0.053933,92611.0,92606.0,0.01686539]
[1732084167061,0.053933,92611.0,92607.0,0.01686539]
[1732084167264,0.053933,92611.0,92610.0,0.38594479]
[1732084167579,0.053933,92611.0,92610.0,0.40281018]
[1732084168065,0.09416,92616.0,92610.0,0.40281018]
[1732084168267,0.053931,92614.0,92611.0,0.01686539]
[1732084168472,0.053931,92614.0,92610.0,0.38594479]
[1732084168874,0.053932,92613.0,92610.0,0.38594479]
[1732084170573,0.053932,92613.0,92608.0,0.053934]
[1732084170767,0.053932,92613.0,92609.0,0.0168654]
[1732084171075,0.053932,92613.0,92608.0,0.12365204]
[1732084171278,0.053932,92613.0,92609.0,0.01686537]
[1732084171479,0.053932,92613.0,92608.0,0.12365204]
[1732084171662,0.053932,92613.0,92609.0,0.053933]
[1732084171866,0.053932,92613.0,92608.0,0.06971804]
[1732084172073,0.46992339,92619.0,92613.0,0.053931]
[1732084172074,0.053929,92618.0,92613.0,0.053931]
[1732084172280,0.053929,92617.0,92614.0,0.06971804]
[1732084172472,0.40020535,92619.0,92614.0,0.06971804]
[1732084172686,0.05393,92615.0,92609.0,0.53490659]
[1732084172871,0.05393,92615.0,92610.0,0.01686501]
[1732084173072,0.05393,92615.0,92611.0,0.01686501]
[1732084173382,0.05393,92615.0,92610.0,0.053933]
[1732084173581,0.05393,92615.0,92611.0,0.016865]
[1732084173783,0.05393,92615.0,92610.0,0.053933]
[1732084173970,0.05393,92615.0,92611.0,0.01686509]
[1732084174279,0.39960534,92619.0,92610.0,0.053933]
[1732084174479,0.053931,92614.0,92611.0,0.016865]
[1732084174682,0.053931,92614.0,92610.0,0.053933]
[1732084174872,0.053931,92614.0,92611.0,0.01686522]
[1732084175072,0.053931,92614.0,92612.0,0.01686522]
[1732084175275,0.053931,92614.0,92613.0,0.01686522]
[1732084177475,0.053931,92614.0,92613.0,0.43210972]
[1732084177779,0.005,92623.0,92618.0,0.053928]
[1732084177987,0.053925,92623.0,92620.0,0.053927]
[1732084178970,0.09416,92629.0,92618.0,0.06971804]
[1732084179577,0.053923,92627.0,92623.0,0.06971804]
[1732084179872,0.053924,92626.0,92623.0,0.06971804]
[1732084180482,0.053922,92629.0,92623.0,0.06971804]
[1732084180679,0.053922,92629.0,92628.0,0.06971804]
[1732084182776,0.053922,92629.0,92628.0,0.32643425]
[1732084183582,0.053922,92629.0,92628.0,0.06971804]
[1732084183778,0.03879783,92631.0,92625.0,0.25671621]
[1732084183779,0.053923,92626.0,92625.0,0.25671621]
[1732084183983,0.3608,92628.0,92625.0,0.25663298]
[1732084184985,0.3608,92628.0,92624.0,0.25663298]
[1732084185380,0.3608,92628.0,92623.0,0.32635102]
[1732084186083,0.414723,92628.0,92623.0,0.32635102]
[1732084186273,0.414723,92628.0,92626.0,0.19241019]
[1732084187785,0.3608,92628.0,92626.0,0.19241019]
[1732084187979,0.053923,92627.0,92626.0,0.19241019]
[1732084188477,0.3608,92628.0,92623.0,0.06971804]
[1732084188676,0.053924,92625.0,92623.0,0.32635102]
[1732084189693,0.053924,92625.0,92623.0,0.06971804]
[1732084191291,0.053924,92625.0,92624.0,0.73392808]
[1732084191490,0.053924,92625.0,92624.0,0.32088066]
[1732084192308,0.053924,92625.0,92624.0,0.41348334]
[1732084193688,0.053924,92625.0,92624.0,0.90762532]
[1732084194081,0.053924,92625.0,92624.0,0.41348334]
[1732084194389,0.09115598,92625.0,92624.0,0.41348334]
[1732084194779,0.09115598,92625.0,92624.0,0.41493294]
[1732084194989,0.053924,92625.0,92624.0,0.41493294]
[1732084198099,0.053924,92625.0,92624.0,0.43179671]
[1732084199394,0.053924,92625.0,92624.0,0.4317965]
[1732084203191,0.053924,92625.0,92624.0,0.86262451]
[1732084203398,0.053924,92625.0,92624.0,0.44769157]
[1732084204789,0.053924,92625.0,92624.0,0.96018126]
[1732084205298,0.053924,92625.0,92624.0,0.96029522]
[1732084205992,0.053924,92625.0,92624.0,0.94343166]
[1732084206695,0.39943215,92628.0,92624.0,0.94343166]
[1732084206887,0.005,92644.0,92627.0,0.06971804]
[1732084207094,0.005,92644.0,92638.0,0.38581871]
[1732084207395,0.54712763,92645.0,92638.0,0.93880847]
[1732084207585,0.54768764,92645.0,92638.0,0.93880847]
[1732084207992,0.54768764,92645.0,92638.0,0.93310808]
[1732084208408,0.39977464,92645.0,92638.0,0.47961143]
[1732084208795,0.39977464,92645.0,92638.0,1.00363861]
[1732084208992,0.39977464,92645.0,92638.0,1.0036382]
[1732084210103,0.39977464,92645.0,92644.0,0.053913]
[1732084210293,0.39921463,92645.0,92644.0,0.93456391]
[1732084210891,0.39921463,92645.0,92644.0,0.54932647]
[1732084211399,0.03841463,92645.0,92644.0,0.54932647]
[1732084211601,0.05391,92649.0,92644.0,0.88044989]
[1732084211807,0.05391,92649.0,92647.0,0.053911]
[1732084212009,0.03730089,92649.0,92648.0,0.42569543]
[1732084212309,0.094,92653.0,92652.0,0.053908]
[1732084212495,0.09129911,92655.0,92652.0,0.12362604]
[1732084213703,0.094,92660.0,92652.0,0.12362604]
[1732084213704,0.094,92660.0,92658.0,0.053905]
[1732084213893,0.094,92660.0,92659.0,0.06971804]
[1732084216003,0.13120667,92660.0,92659.0,0.06971804]
[1732084216203,0.3608,92662.0,92659.0,0.32587046]
[1732084216402,0.00161921,92664.0,92661.0,0.06971804]
[1732084216608,0.00056001,92667.0,92666.0,0.0539]
[1732084216799,0.02657695,92678.0,92677.0,0.053894]
[1732084217005,0.02157695,92678.0,92677.0,0.61843063]
[1732084217312,0.005,92689.0,92677.0,0.15628934]
[1732084217510,0.09429,92692.0,92688.0,0.06971804]
[1732084217697,0.09429,92692.0,92691.0,0.19167923]
[1732084217895,0.09429,92692.0,92689.0,0.053886]
[1732084218097,0.00041,92692.0,92690.0,0.24536962]
[1732084218311,0.00041,92692.0,92691.0,0.19148362]
[1732084218602,0.00041,92692.0,92690.0,0.15811736]
[1732084224410,0.00041,92692.0,92690.0,0.10423136]
[1732084224612,0.00041,92692.0,92684.0,0.05389]
[1732084225901,0.00041,92692.0,92689.0,0.053887]
[1732084226309,0.00041,92692.0,92683.0,0.16573136]
[1732084226713,0.00041,92692.0,92675.0,0.46591136]
[1732084226714,0.09384,92691.0,92675.0,0.46591136]
[1732084226913,0.0638,92690.0,92676.0,0.01499047]
[1732084227103,0.0638,92690.0,92677.0,0.2064484]
[1732084227299,0.211527,92690.0,92680.0,0.053892]
[1732084227606,0.211527,92690.0,92681.0,0.00574498]
[1732084227812,0.05389,92684.0,92675.0,0.65736929]
[1732084228008,0.15764,92690.0,92676.0,0.19720307]
[1732084228009,0.053891,92683.0,92676.0,0.19720307]
[1732084228305,0.084191,92683.0,92677.0,0.01497435]
[1732084228521,0.084191,92683.0,92678.0,0.01497435]
[1732084228707,0.084191,92683.0,92679.0,0.01497435]
[1732084228908,0.084191,92683.0,92680.0,0.01497435]
[1732084229108,0.0303,92683.0,92680.0,0.00574514]
[1732084229317,0.0303,92683.0,92677.0,0.19145793]
[1732084229508,0.0303,92683.0,92678.0,0.0168503]
[1732084229708,0.0303,92683.0,92679.0,0.0168503]
[1732084230011,0.0303,92683.0,92680.0,0.00582972]
[1732084230212,0.0303,92683.0,92677.0,0.19145793]
[1732084230525,0.0303,92683.0,92678.0,0.01685102]
[1732084230724,0.0303,92683.0,92679.0,0.01685102]
[1732084230908,0.0303,92683.0,92680.0,0.01685102]
[1732084231107,0.0303,92683.0,92678.0,0.19145793]
[1732084231317,0.0303,92683.0,92679.0,0.01685112]
[1732084231514,0.0303,92683.0,92680.0,0.01685112]
[1732084231715,0.053889,92685.0,92681.0,0.01685112]
[1732084232022,0.053889,92685.0,92682.0,0.01685112]
[1732084232412,0.053889,92685.0,92679.0,0.19145793]
[1732084232617,0.053889,92685.0,92680.0,0.01685095]
[1732084232933,0.053889,92685.0,92681.0,0.01685095]
[1732084233133,0.053889,92685.0,92682.0,0.01685095]
[1732084233423,0.053889,92685.0,92683.0,0.01685095]
[1732084233617,0.053889,92685.0,92684.0,0.01685095]
[1732084234930,0.03766378,92689.0,92684.0,0.07073995]
[1732084235108,0.09384,92687.0,92685.0,0.01685095]
[1732084235304,0.09384,92687.0,92686.0,0.01685095]
[1732084235923,0.053886,92691.0,92686.0,0.07073895]
[1732084236118,0.09384,92693.0,92688.0,0.053887]
[1732084236320,0.09384,92693.0,92689.0,0.01685095]
[1732084236615,0.09384,92693.0,92690.0,0.01685095]
[1732084236820,0.09384,92693.0,92691.0,0.01685095]
[1732084237005,0.09384,92693.0,92692.0,0.01685095]
[1732084240119,0.147724,92693.0,92692.0,0.01685095]
[1732084240517,0.147724,92693.0,92692.0,0.20850139]
[1732084241110,0.21736207,92693.0,92692.0,0.01685095]
[1732084241316,0.053888,92687.0,92686.0,0.25553392]
[1732084241514,0.053888,92687.0,92686.0,0.27238607]
[1732084242217,0.053889,92686.0,92683.0,0.06963807]
[1732084242425,0.053889,92685.0,92684.0,0.01685191]
[1732084242627,0.414689,92685.0,92684.0,0.04381497]
[1732084244328,0.414689,92685.0,92684.0,0.01685191]
[1732084244908,0.414689,92685.0,92684.0,0.04381635]
[1732084245114,0.053897,92672.0,92671.0,0.38330088]
[1732084245317,0.52427807,92672.0,92658.0,0.0712566]
[1732084245513,0.0539,92667.0,92666.0,0.44718437]
[1732084245718,0.0539,92667.0,92666.0,0.42540381]
[1732084246119,0.0539,92667.0,92666.0,0.93286483]
[1732084246331,0.0539,92667.0,92666.0,0.81029677]
[1732084246714,0.0539,92667.0,92666.0,0.42540381]
[1732084247512,0.0539,92667.0,92666.0,0.74604018]
[1732084247720,0.0539,92667.0,92666.0,0.32063637]
[1732084247931,0.0539,92667.0,92662.0,0.32063637]
[1732084248227,0.053904,92659.0,92658.0,0.00161853]
[1732084248413,0.147704,92659.0,92658.0,0.00161853]
[1732084252826,0.0938,92659.0,92645.0,0.00010345]
[1732084253031,0.41471,92650.0,92645.0,0.00010345]
[1732084253433,0.05391,92649.0,92645.0,0.00010345]
[1732084253631,0.147751,92648.0,92645.0,0.00010345]
[1732084255832,0.09384,92648.0,92645.0,0.00010345]
[1732084257233,0.147751,92648.0,92645.0,0.00010345]
[1732084257531,0.09384,92648.0,92645.0,0.00010345]
[1732084257834,0.053911,92647.0,92645.0,0.00010345]
[1732084258333,0.09384,92648.0,92645.0,0.00010345]
[1732084258535,0.053912,92646.0,92645.0,0.00010345]
[1732084272947,0.053912,92646.0,92645.0,0.1922767]
[1732084273138,0.053912,92646.0,92645.0,0.00010345]
[1732084275140,0.09384,92649.0,92645.0,0.7761199]
[1732084275337,0.0938,92650.0,92646.0,0.41521645]
[1732084275543,0.0938,92650.0,92649.0,0.06970242]
[1732084275746,0.0938,92650.0,92649.0,0.48491887]
[1732084277338,0.0938,92650.0,92649.0,0.50177723]
[1732084278148,0.053907,92654.0,92649.0,0.86981183]
[1732084278449,0.0938,92653.0,92650.0,0.81696796]
[1732084278647,0.0938,92653.0,92651.0,0.41521645]
[1732084278850,0.0938,92653.0,92652.0,0.41521645]
[1732084279148,0.0938,92653.0,92652.0,0.43207442]
[1732084279335,0.0938,92653.0,92652.0,0.41521645]
[1732084279542,0.0938,92653.0,92652.0,0.80010941]
[1732084280343,0.0938,92653.0,92652.0,0.41521645]
[1732084281452,0.147708,92653.0,92652.0,0.41521645]
[1732084284143,0.508508,92653.0,92652.0,0.41521645]
[1732084284348,0.508508,92653.0,92651.0,0.32144693]
[1732084284547,0.06970242,92652.0,92650.0,0.32144693]
[1732084284747,0.12361142,92651.0,92650.0,0.32144693]
[1732084285148,0.12361142,92651.0,92650.0,0.41618572]
[1732084285461,0.05391,92650.0,92649.0,0.3214635]
[1732084285856,0.05391,92650.0,92649.0,0.41523923]
[1732084286057,0.05391,92650.0,92649.0,0.73670603]
[1732084286247,0.05391,92650.0,92648.0,0.3214668]
[1732084286557,0.43050242,92649.0,92648.0,0.3214668]
[1732084287246,0.43050242,92649.0,92647.0,0.3214668]
[1732084287247,0.053911,92648.0,92647.0,0.3214668]
[1732084287448,0.053911,92648.0,92645.0,0.00010345]
[1732084287645,0.053912,92646.0,92645.0,0.00010345]
[1732084287848,0.12361442,92646.0,92645.0,0.00010345]
[1732084288258,0.053912,92645.0,92644.0,0.19291433]
[1732084288463,0.053916,92639.0,92638.0,0.19291433]
[1732084288663,0.147716,92639.0,92637.0,0.19291433]
[1732084288852,0.053917,92637.0,92636.0,0.19291433]
[1732084289052,0.48441942,92637.0,92636.0,0.19291433]
[1732084289264,0.48452173,92637.0,92636.0,0.19291433]
[1732084289566,0.053918,92635.0,92634.0,0.19291433]
[1732084289749,0.053921,92631.0,92630.0,0.2571978]
[1732084289951,0.12362342,92631.0,92630.0,0.2571978]
[1732084290854,0.16104569,92631.0,92630.0,0.2571978]
[1732084291462,0.16104569,92631.0,92629.0,0.2571978]
[1732084291663,0.16104569,92631.0,92624.0,0.00161897]
[1732084291664,0.09134327,92631.0,92630.0,0.2571978]
[1732084292169,0.09134327,92631.0,92629.0,0.2571978]
[1732084294463,0.09134327,92631.0,92628.0,0.06970242]
[1732084295352,0.45214327,92631.0,92628.0,0.06970242]
[1732084296054,0.053921,92630.0,92628.0,0.06970242]
[1732084296254,0.0938,92629.0,92628.0,0.06970242]
[1732084300375,0.053922,92628.0,92626.0,0.3214668]
[1732084301166,0.06970242,92627.0,92626.0,0.3214668]
[1732084302173,0.053922,92628.0,92626.0,0.3214668]
[1732084302355,0.053924,92625.0,92624.0,0.00161897]
[1732084308070,0.043924,92625.0,92624.0,0.00161897]
[1732084311468,0.09372,92627.0,92624.0,0.41484177]
[1732084311768,0.053924,92625.0,92624.0,0.41484177]
[1732084312771,0.053924,92625.0,92624.0,0.00161897]
[1732084314369,0.053926,92621.0,92620.0,0.3851526]
[1732084315775,0.37796077,92621.0,92620.0,0.3851526]
[1732084316370,0.05404077,92621.0,92620.0,0.3851526]
[1732084316573,0.05404077,92621.0,92609.0,0.32238704]
[1732084316574,0.09383477,92621.0,92609.0,0.32238704]
[1732084316780,0.414732,92611.0,92609.0,0.32142704]
[1732084317276,0.09376,92610.0,92609.0,0.32142704]
[1732084317573,0.147693,92610.0,92606.0,0.39115666]
[1732084317777,0.053935,92607.0,92606.0,0.32145424]
[1732084318478,0.053935,92607.0,92605.0,0.32145424]
[1732084319175,0.09376,92610.0,92605.0,0.39115666]
[1732084319376,0.13149741,92610.0,92605.0,0.06970242]
[1732084319577,0.09376,92609.0,92605.0,0.06970242]
[1732084319775,0.09376,92609.0,92608.0,0.06970242]
[1732084321075,0.09376,92609.0,92604.0,0.32145424]
[1732084321266,0.147694,92609.0,92604.0,0.32145424]
[1732084321472,0.147694,92609.0,92605.0,0.32145424]
[1732084321668,0.147694,92609.0,92604.0,0.32145424]
[1732084321669,0.053936,92605.0,92604.0,0.32145424]
[1732084322684,0.053936,92605.0,92604.0,0.40871602]
[1732084325484,0.053936,92605.0,92604.0,0.79386862]
[1732084325784,0.053936,92605.0,92604.0,0.89651914]
[1732084326101,0.053936,92605.0,92604.0,0.4092442]
[1732084326480,0.053936,92605.0,92604.0,0.89711793]
[1732084326784,0.053936,92605.0,92604.0,0.4092442]
[1732084327405,0.053936,92605.0,92604.0,0.89461356]
[1732084328676,0.053936,92605.0,92604.0,0.4092442]
[1732084328877,0.053936,92605.0,92604.0,0.89467965]
[1732084329876,0.399128,92611.0,92604.0,0.89467965]
[1732084329877,0.36144,92611.0,92608.0,0.06970242]
[1732084330076,0.147693,92610.0,92609.0,0.79498806]
[1732084330585,0.147693,92610.0,92609.0,0.4092442]
[1732084331091,0.053933,92610.0,92609.0,0.4092442]
[1732084331275,0.053933,92610.0,92609.0,0.4406442]
[1732084335281,0.053933,92610.0,92609.0,0.0314]
[1732084335587,0.053933,92610.0,92609.0,0.43852884]
[1732084336383,0.053933,92610.0,92609.0,0.40712884]
[1732084340479,0.053933,92610.0,92607.0,0.3608]
[1732084340480,0.053934,92608.0,92607.0,0.3608]
[1732084340682,0.053934,92608.0,92607.0,0.76818149]
[1732084341278,0.09376,92612.0,92607.0,1.29443284]
[1732084341485,0.09376,92612.0,92608.0,0.42424691]
[1732084341686,0.09376,92612.0,92609.0,0.42424691]
[1732084341888,0.09376,92612.0,92610.0,0.40738149]
[1732084342079,0.09376,92612.0,92611.0,0.40738149]
[1732084342483,0.09368,92613.0,92611.0,0.40738149]
[1732084342689,0.09368,92613.0,92612.0,0.40738149]
[1732084343493,0.09368,92613.0,92612.0,0.89455011]
[1732084344197,0.053931,92614.0,92612.0,0.89455011]
[1732084344400,0.147611,92614.0,92613.0,0.89541935]
[1732084344990,0.147611,92614.0,92613.0,0.40738149]
[1732084345685,0.147611,92614.0,92613.0,0.79381401]
[1732084345894,0.147611,92614.0,92613.0,0.40738149]
[1732084346890,0.147611,92614.0,92613.0,0.79381401]
[1732084347194,0.147611,92614.0,92613.0,0.40738149]
[1732084350196,0.053931,92614.0,92613.0,0.79381401]
[1732084350402,0.053931,92614.0,92613.0,0.40738149]
[1732084351701,0.053931,92614.0,92613.0,0.79381401]
[1732084353191,0.053931,92614.0,92613.0,0.40738149]
[1732084354397,0.09368,92615.0,92613.0,0.40923488]
[1732084354604,0.14761,92615.0,92614.0,0.79583431]
[1732084355099,0.14761,92615.0,92614.0,0.40923445]
[1732084355297,0.14761,92615.0,92614.0,0.79583431]
[1732084355597,0.14761,92615.0,92614.0,0.40923445]
[1732084356986,0.14761,92615.0,92614.0,0.79582874]
[1732084357891,0.14761,92615.0,92614.0,0.40923445]
[1732084363302,0.14761,92615.0,92614.0,0.79588247]
[1732084364105,0.14761,92615.0,92614.0,0.79661252]
[1732084364410,0.14761,92615.0,92614.0,0.4099645]
[1732084364793,0.12363242,92615.0,92614.0,0.4099645]
[1732084365106,0.05393,92614.0,92613.0,0.25786066]
[1732084365404,0.05393,92614.0,92609.0,0.25786066]
[1732084365405,0.053933,92610.0,92609.0,0.25786066]
[1732084365592,0.12363542,92610.0,92609.0,0.25786066]
[1732084365793,0.19333784,92610.0,92609.0,0.25786066]
[1732084366201,0.053933,92609.0,92608.0,0.25786066]
[1732084366391,0.13940484,92609.0,92605.0,0.25786066]
[1732084366591,0.48443742,92606.0,92605.0,0.25786066]
[1732084367190,0.43050242,92606.0,92604.0,0.25786066]
[1732084367397,0.21719842,92605.0,92604.0,0.2575579]
[1732084367700,0.21719842,92605.0,92604.0,0.25754869]
[1732084367701,0.16326242,92605.0,92604.0,0.25754869]
[1732084367904,0.21719842,92605.0,92604.0,0.25754869]
[1732084368096,0.053936,92604.0,92603.0,0.25754869]
[1732084368401,0.053936,92604.0,92602.0,0.25754869]
[1732084368402,0.06970242,92604.0,92602.0,0.25754869]
[1732084368600,0.09356,92605.0,92593.0,0.38664802]
[1732084368601,0.12363942,92603.0,92593.0,0.38664802]
[1732084368804,0.12363942,92603.0,92591.0,0.38672966]
[1732084368805,0.06970242,92594.0,92591.0,0.38672966]
[1732084369006,0.06970242,92594.0,92591.0,8.164e-05]
[1732084369007,0.053943,92592.0,92591.0,8.164e-05]
[1732084369303,0.053943,92592.0,92591.0,0.79513343]
[1732084370110,0.053943,92592.0,92591.0,0.40889244]
[1732084370610,0.053943,92592.0,92591.0,8.164e-05]
[1732084370611,0.48457729,92592.0,92591.0,8.164e-05]
[1732084370802,0.48457729,92592.0,92591.0,0.25752142]
[1732084371005,0.41487487,92592.0,92591.0,8.164e-05]
[1732084371209,0.55427971,92592.0,92591.0,8.164e-05]
[1732084371505,0.55427971,92592.0,92591.0,0.19309815]
[1732084372506,0.55427971,92592.0,92591.0,8.164e-05]
[1732084372907,0.59269736,92592.0,92591.0,8.164e-05]
[1732084375105,0.053947,92585.0,92584.0,0.19301651]
[1732084375307,0.053947,92585.0,92582.0,0.19301651]
[1732084375308,0.053948,92584.0,92582.0,0.19301651]
[1732084375508,0.053948,92584.0,92577.0,0.25906]
[1732084375509,0.053951,92578.0,92577.0,0.25906]
[1732084375696,0.12365342,92578.0,92577.0,0.00162022]
[1732084377402,0.06970242,92578.0,92574.0,0.19278671]
[1732084377597,0.06970242,92578.0,92568.0,0.25743978]
[1732084377598,0.43050242,92575.0,92573.0,0.19278671]
[1732084377798,0.053954,92573.0,92570.0,0.25743978]
[1732084378015,0.053956,92570.0,92568.0,0.25743978]
[1732084378199,0.053957,92568.0,92567.0,0.25743978]
[1732084378401,0.12365942,92568.0,92566.0,0.25743978]
[1732084378713,0.053958,92566.0,92564.0,0.25743978]
[1732084379706,0.05396,92564.0,92563.0,0.61823978]
[1732084381107,0.053968,92549.0,92547.0,0.0313]
[1732084381510,0.005,92556.0,92548.0,0.43050242]
[1732084381511,0.053967,92552.0,92548.0,0.43050242]
[1732084381702,0.09356,92551.0,92548.0,0.43050242]
[1732084382605,0.147527,92551.0,92548.0,0.43050242]
[1732084382914,0.053968,92550.0,92548.0,0.43050242]
[1732084385803,0.053968,92549.0,92548.0,0.43050242]
[1732084386004,0.053968,92549.0,92548.0,0.3608]
[1732084387203,0.0936,92552.0,92548.0,0.3608]
[1732084387404,0.147567,92552.0,92551.0,0.25667101]
[1732084387903,0.053967,92551.0,92550.0,0.25667101]
[1732084388111,0.0936,92553.0,92548.0,0.43050242]
[1732084388406,0.0936,92553.0,92552.0,0.06970242]
[1732084389223,0.053965,92554.0,92552.0,0.06970242]
[1732084389712,0.0936,92558.0,92552.0,0.06970242]
[1732084389910,0.053962,92560.0,92557.0,0.06970242]
[1732084390102,0.053963,92559.0,92558.0,0.31994253]
[1732084390297,0.053963,92559.0,92558.0,0.0632]
[1732084392323,0.0936,92563.0,92558.0,0.117163]
[1732084392706,0.053963,92559.0,92558.0,0.117163]
[1732084395825,0.053963,92559.0,92558.0,0.13403735]
[1732084396213,0.053963,92559.0,92558.0,0.45554798]
[1732084396415,0.053963,92559.0,92558.0,0.86332504]
[1732084396611,0.053963,92559.0,92558.0,0.0632]
[1732084397513,0.053963,92559.0,92558.0,0.38471063]
[1732084397714,0.053963,92559.0,92558.0,0.79252682]
[1732084398019,0.053963,92559.0,92558.0,0.80940154]
[1732084398322,0.00066948,92564.0,92558.0,0.76238547]
[1732084398515,0.05406947,92564.0,92563.0,0.06970242]
[1732084398913,0.00010947,92564.0,92560.0,0.32151063]
[1732084399222,0.053963,92558.0,92557.0,0.32151063]
[1732084399424,0.053962,92560.0,92557.0,0.32151063]
[1732084399625,0.053964,92557.0,92556.0,0.32151063]
[1732084399918,0.053964,92557.0,92556.0,0.72947273]
[1732084400232,0.053964,92557.0,92556.0,0.74634834]
[1732084400409,0.053964,92557.0,92556.0,0.42483771]
[1732084400825,0.053964,92557.0,92556.0,0.4079621]
[1732084403318,0.053964,92557.0,92556.0,0.42483777]
[1732084403523,0.053964,92557.0,92556.0,0.79420309]
[1732084404123,0.053964,92557.0,92556.0,0.81107877]
[1732084404329,0.053964,92557.0,92556.0,0.81107886]
[1732084404529,0.053964,92557.0,92556.0,0.42483787]
[1732084404732,0.053964,92557.0,92556.0,0.42483765]
[1732084405533,0.053964,92557.0,92556.0,0.01687555]
[1732084405726,0.053964,92557.0,92556.0,0.42504329]
[1732084405921,0.053964,92557.0,92556.0,0.91154525]
[1732084408121,0.053964,92557.0,92556.0,0.81242753]
[1732084408529,0.053964,92557.0,92556.0,0.81244069]
[1732084409031,0.053964,92557.0,92556.0,0.42504329]
[1732084409230,0.053964,92557.0,92556.0,0.81244069]
[1732084409434,0.414764,92557.0,92556.0,0.42504329]
[1732084410528,0.414764,92557.0,92556.0,0.42529285]
[1732084410835,0.45201107,92557.0,92556.0,0.42529285]
[1732084411334,0.52171349,92557.0,92556.0,0.42529391]
[1732084411519,0.16091349,92557.0,92556.0,0.42529391]
[1732084412439,0.06970242,92560.0,92556.0,0.4084173]
[1732084412632,0.06970242,92560.0,92555.0,0.053965]
[1732084412633,0.09348,92559.0,92558.0,0.38738612]
[1732084412821,0.09348,92559.0,92558.0,0.42529316]
[1732084413022,0.147443,92559.0,92558.0,0.42529316]
[1732084413222,0.147443,92559.0,92558.0,0.4084173]
[1732084414238,0.147443,92559.0,92558.0,0.79578489]
[1732084414432,0.147443,92559.0,92558.0,0.4084173]
[1732084414821,0.147443,92559.0,92558.0,0.79577621]
[1732084415235,0.147443,92559.0,92558.0,0.4084173]
[1732084415621,0.053963,92559.0,92558.0,0.4084173]
[1732084415827,0.053963,92559.0,92558.0,0.79577621]
[1732084416131,0.053963,92559.0,92558.0,0.4623803]
[1732084418828,0.053963,92559.0,92558.0,0.47925557]
[1732084419440,0.09348,92563.0,92560.0,0.053962]
[1732084419623,0.09348,92563.0,92562.0,0.38745511]
[1732084419829,0.09348,92563.0,92562.0,0.79587241]
[1732084420030,0.09348,92563.0,92562.0,0.4084173]
[1732084420734,0.14744,92563.0,92562.0,0.4084173]
[1732084421638,0.05396,92563.0,92562.0,0.42529305]
[1732084424742,0.05396,92563.0,92562.0,0.42529151]
[1732084425044,0.05396,92563.0,92562.0,0.42711023]
[1732084425828,0.05396,92563.0,92562.0,0.41023602]
[1732084426141,0.05396,92563.0,92562.0,0.42711134]
[1732084428132,0.05396,92563.0,92562.0,0.41023602]
[1732084428333,0.05396,92563.0,92562.0,0.42711167]
[1732084428729,0.05396,92563.0,92562.0,0.41023602]
[1732084428932,0.06981189,92564.0,92562.0,0.41678823]
[1732084429152,0.12377189,92564.0,92563.0,0.41678823]
[1732084429331,0.05406947,92564.0,92563.0,0.41678823]
[1732084429838,0.05406947,92564.0,92563.0,0.416877]
[1732084430242,0.00010947,92564.0,92562.0,0.32309751]
[1732084430546,0.06970242,92563.0,92561.0,0.32309751]
[1732084430846,0.053961,92561.0,92560.0,0.32309751]
[1732084431046,0.12366342,92561.0,92560.0,0.41690396]
[1732084431434,0.12366342,92561.0,92560.0,0.80445981]
[1732084432242,0.12366342,92561.0,92560.0,0.41690396]
[1732084432749,0.12366342,92561.0,92560.0,0.80445981]
[1732084433252,0.12366342,92561.0,92560.0,0.41690396]
[1732084434438,0.12366342,92561.0,92558.0,0.38755585]
[1732084434636,0.053962,92560.0,92559.0,0.4164222]
[1732084438354,0.053962,92560.0,92559.0,0.80403349]
[1732084439459,0.053962,92560.0,92559.0,0.41204305]
[1732084443754,0.414762,92560.0,92559.0,0.41204305]
[1732084446261,0.414762,92560.0,92559.0,0.32288836]
[1732084446555,0.3608,92560.0,92557.0,0.32288836]
[1732084446760,0.053963,92559.0,92558.0,0.32288836]
[1732084446960,0.3608,92560.0,92558.0,0.41159995]
[1732084447158,0.414762,92560.0,92559.0,0.32290457]
[1732084447562,0.414762,92560.0,92542.0,0.3658]
[1732084447563,0.053963,92559.0,92556.0,0.32290457]
[1732084447765,0.053964,92557.0,92556.0,0.32290457]
[1732084448064,0.19336884,92557.0,92556.0,0.32290457]
[1732084448263,0.053964,92556.0,92555.0,0.32290457]
[1732084448446,0.22456884,92556.0,92555.0,0.733861]
[1732084448653,0.15486642,92556.0,92555.0,0.733861]
[1732084448959,0.22456884,92556.0,92555.0,0.733861]
[1732084450256,0.22456884,92556.0,92555.0,0.41095643]
[1732084450451,0.15486642,92556.0,92555.0,0.73390294]
[1732084451262,0.15486642,92556.0,92555.0,0.41095643]